bitfinex/quotes_BTCUSD_20250324
["timestamp","ask_amount","ask_price","bid_price","bid_amount"]
[1742848117847,0.24250397,88449.0,88448.0,0.53938101]
[1742848119408,0.24250397,88449.0,88448.0,0.76550201]
[1742848119409,0.00507997,88449.0,88448.0,0.76550201]
[1742848119617,0.30017878,88465.0,88464.0,0.011304]
[1742848119618,0.00017878,88465.0,88464.0,0.011304]
[1742848119776,0.00017878,88465.0,88464.0,0.445264]
[1742848120179,0.00017878,88465.0,88464.0,0.20788]
[1742848120807,0.22625678,88465.0,88464.0,0.20788]
[1742848121011,0.23955978,88465.0,88464.0,0.20788]
[1742848121214,0.23955978,88465.0,88464.0,0.12588]
[1742848121622,0.23755978,88465.0,88464.0,0.12588]
[1742848121825,0.23755978,88465.0,88464.0,0.12788]
[1742848122131,0.23755978,88465.0,88464.0,0.12888]
[1742848122756,0.01148178,88465.0,88464.0,0.12888]
[1742848122976,0.22625678,88465.0,88464.0,0.12888]
[1742848123653,0.23755978,88465.0,88464.0,0.12888]
[1742848124062,0.237381,88465.0,88464.0,0.12888]
[1742848125321,0.237381,88465.0,88464.0,0.00282122]
[1742848126431,0.237381,88465.0,88464.0,0.12866122]
[1742848129848,0.226078,88465.0,88464.0,0.12866122]
[1742848130497,0.226078,88465.0,88464.0,0.12883112]
[1742848130693,0.2377208,88465.0,88464.0,0.12883112]
[1742848134108,0.0003398,88465.0,88464.0,0.12883112]
[1742848134313,0.2264178,88465.0,88464.0,0.12883112]
[1742848134973,0.2377208,88465.0,88464.0,0.12883112]
[1742848135380,0.2377208,88465.0,88464.0,0.00299112]
[1742848135596,0.2377208,88465.0,88464.0,0.12883112]
[1742848145375,0.2377208,88465.0,88464.0,0.12783112]
[1742848145692,0.2377208,88465.0,88464.0,0.1260099]
[1742848146174,0.2377208,88465.0,88464.0,0.1270099]
[1742848153048,0.0003398,88465.0,88464.0,0.3530899]
[1742848153258,0.0003398,88465.0,88464.0,0.1270099]
[1742848153456,0.0003398,88465.0,88464.0,0.2078099]
[1742848155296,0.0003398,88465.0,88464.0,0.1270099]
[1742848155477,0.2264178,88465.0,88464.0,0.1270099]
[1742848155685,0.0003398,88465.0,88464.0,0.3530899]
[1742848156527,0.0003398,88465.0,88464.0,0.2385539]
[1742848156743,0.00017551,88465.0,88464.0,0.35281154]
[1742848156955,0.0003396,88497.0,88488.0,0.0113]
[1742848157173,0.0003396,88497.0,88495.0,0.226]
[1742848157358,0.01137815,88497.0,88495.0,0.226]
[1742848157567,0.01137815,88497.0,88496.0,0.225998]
[1742848157568,0.0003396,88497.0,88496.0,0.225998]
[1742848157801,0.01179138,88497.0,88496.0,0.225998]
[1742848158179,0.0003396,88497.0,88496.0,0.225998]
[1742848158402,0.0024627,88497.0,88496.0,0.225998]
[1742848158612,0.01393141,88497.0,88496.0,0.225998]
[1742848158817,0.0044627,88497.0,88495.0,0.226]
[1742848159024,0.0054627,88497.0,88495.0,0.226]
[1742848159645,0.2314597,88497.0,88495.0,0.226]
[1742848159849,0.2304597,88497.0,88495.0,0.226]
[1742848160060,0.2304597,88497.0,88494.0,0.226003]
[1742848160269,0.0157617,88497.0,88488.0,0.226018]
[1742848160480,0.0113,88493.0,88489.0,0.351854]
[1742848160684,0.237311,88493.0,88490.0,0.226013]
[1742848160885,0.226009,88492.0,88490.0,0.226013]
[1742848161093,0.237311,88493.0,88490.0,0.226013]
[1742848161304,0.226004,88494.0,88489.0,0.12584]
[1742848161507,0.226004,88494.0,88491.0,0.22601]
[1742848161943,0.001,88493.0,88492.0,0.226008]
[1742848162156,0.226004,88494.0,88491.0,0.22601]
[1742848162452,0.226007,88493.0,88491.0,0.22601]
[1742848162879,0.226004,88494.0,88492.0,0.226007]
[1742848163054,0.23797822,88497.0,88494.0,0.226001]
[1742848164116,0.225999,88496.0,88493.0,0.226004]
[1742848164857,0.011299,88496.0,88491.0,0.22601]
[1742848165098,0.0113,88495.0,88491.0,0.22601]
[1742848165294,0.226004,88494.0,88492.0,0.226008]
[1742848166850,0.226004,88494.0,88491.0,0.22601]
[1742848166996,0.226004,88494.0,88490.0,0.226013]
[1742848167214,0.226006,88493.0,88491.0,0.226011]
[1742848167588,0.226006,88493.0,88490.0,0.226013]
[1742848168210,0.226009,88492.0,88490.0,0.226013]
[1742848168424,0.226006,88493.0,88490.0,0.226013]
[1742848168636,0.226009,88492.0,88489.0,0.351856]
[1742848169090,0.226012,88491.0,88489.0,0.12584]
[1742848169294,0.226012,88491.0,88482.0,0.226032]
[1742848169295,0.226024,88486.0,88482.0,0.226032]
[1742848169428,0.226024,88486.0,88483.0,0.351829]
[1742848170465,0.226024,88486.0,88484.0,0.226028]
[1742848170686,0.237323,88487.0,88484.0,0.226028]
[1742848170821,0.226024,88486.0,88484.0,0.226028]
[1742848171027,0.226022,88487.0,88485.0,0.226026]
[1742848171227,0.226022,88487.0,88484.0,0.226028]
[1742848172016,0.226025,88486.0,88484.0,0.229029]
[1742848172288,0.226025,88486.0,88484.0,0.002]
[1742848172494,0.226025,88486.0,88484.0,0.001]
[1742848173019,0.226025,88486.0,88484.0,0.228028]
[1742848174216,0.226025,88486.0,88484.0,0.227028]
[1742848174391,0.226027,88485.0,88483.0,0.351831]
[1742848174597,0.226025,88486.0,88484.0,0.002]
[1742848174802,0.226025,88486.0,88484.0,0.003]
[1742848175297,0.226025,88486.0,88484.0,0.001]
[1742848176346,0.226025,88486.0,88484.0,0.227029]
[1742848176770,0.226025,88486.0,88484.0,0.001]
[1742848177340,0.226025,88486.0,88484.0,0.003]
[1742848178031,0.2263648,88486.0,88484.0,0.229028]
[1742848180202,0.2263648,88486.0,88484.0,0.003]
[1742848181433,0.0003398,88486.0,88484.0,0.003]
[1742848182537,0.2263648,88486.0,88484.0,0.003]
[1742848182910,0.226027,88485.0,88484.0,0.003]
[1742848183118,0.2263648,88486.0,88484.0,0.003]
[1742848183568,0.2263648,88486.0,88484.0,0.001]
[1742848183947,0.2263648,88486.0,88483.0,0.35183]
[1742848184344,0.2273648,88486.0,88483.0,0.35183]
[1742848184572,0.2273648,88486.0,88484.0,0.226028]
[1742848184788,0.226029,88485.0,88483.0,0.1258]
[1742848184967,0.2263648,88486.0,88483.0,0.1258]
[1742848185372,0.226027,88485.0,88483.0,0.35183]
[1742848188604,0.226027,88485.0,88483.0,0.1258]
[1742848189012,0.2376658,88486.0,88483.0,0.35183]
[1742848189270,0.2376658,88486.0,88483.0,0.1258]
[1742848189271,0.0003398,88486.0,88483.0,0.1258]
[1742848189471,0.226029,88484.0,88483.0,0.1258]
[1742848189823,0.226028,88485.0,88483.0,0.1258]
[1742848190370,0.226029,88484.0,88483.0,0.1258]
[1742848190922,0.2263678,88485.0,88483.0,0.1258]
[1742848191975,0.226029,88484.0,88483.0,0.1258]
[1742848192738,0.2263678,88485.0,88483.0,0.351831]
[1742848193133,0.226029,88484.0,88483.0,0.1258]
[1742848193341,0.2263668,88485.0,88483.0,0.1258]
[1742848193958,0.2263668,88485.0,88483.0,0.351831]
[1742848194510,0.2263668,88485.0,88483.0,0.1258]
[1742848195127,0.226029,88484.0,88483.0,0.1258]
[1742848195369,0.0003398,88485.0,88483.0,0.1258]
[1742848196090,0.2263688,88485.0,88483.0,0.351831]
[1742848196242,0.0003398,88485.0,88483.0,0.351831]
[1742848196600,0.0003398,88485.0,88470.0,0.53764]
[1742848196601,0.0473,88481.0,88470.0,0.53764]
[1742848196807,0.237365,88471.0,88470.0,0.53764]
[1742848197014,0.237365,88471.0,88470.0,0.6634]
[1742848198790,0.284665,88471.0,88470.0,0.6634]
[1742848201644,0.284665,88471.0,88470.0,0.53764]
[1742848201846,0.284665,88471.0,88465.0,0.0001699]
[1742848201847,0.587278,88466.0,88465.0,0.0001699]
[1742848203150,0.58831901,88466.0,88465.0,0.0001699]
[1742848204099,0.58931901,88466.0,88465.0,0.0001699]
[1742848220353,0.66691901,88466.0,88465.0,0.0001699]
[1742848227155,0.74641372,88466.0,88465.0,0.0001699]
[1742848227849,0.74675332,88466.0,88465.0,0.0001699]
[1742848228244,0.66725861,88466.0,88465.0,0.0001699]
[1742848230392,0.66625861,88466.0,88465.0,0.0001699]
[1742848230626,0.66525861,88466.0,88465.0,0.0001699]
[1742848230866,0.66925861,88466.0,88465.0,0.0001699]
[1742848236721,0.59165861,88466.0,88465.0,0.0001699]
[1742848253745,0.67145861,88466.0,88465.0,0.0001699]
[1742848254494,0.66945861,88466.0,88465.0,0.0001699]
[1742848254877,0.67345861,88466.0,88465.0,0.0001699]
[1742848255385,0.67145861,88466.0,88465.0,0.0001699]
[1742848255681,0.67545861,88466.0,88465.0,0.0001699]
[1742848256535,0.67545861,88466.0,88465.0,9e-07]
[1742848256536,0.83632691,88466.0,88465.0,9e-07]
[1742848256736,0.537413,88453.0,88452.0,0.02534217]
[1742848256913,0.69957064,88453.0,88452.0,0.02534217]
[1742848258020,0.70157064,88453.0,88452.0,0.02534217]
[1742848258422,0.537424,88449.0,88440.0,0.1259297]
[1742848259458,0.54893294,88449.0,88440.0,0.1259297]
[1742848259654,0.54993294,88449.0,88440.0,0.1259297]
[1742848260816,0.226154,88435.0,88429.0,0.226168]
[1742848261018,0.22616,88433.0,88430.0,0.226167]
[1742848261467,0.226158,88434.0,88431.0,0.226163]
[1742848261849,0.226158,88434.0,88432.0,0.12576]
[1742848262058,0.22619899,88434.0,88432.0,0.12576]
[1742848262232,0.226159,88433.0,88432.0,0.12576]
[1742848262639,0.22619899,88434.0,88432.0,0.12576]
[1742848263525,0.22619899,88434.0,88432.0,0.12876]
[1742848264226,0.22619899,88434.0,88432.0,0.13076]
[1742848264798,0.22619899,88434.0,88432.0,0.12776]
[1742848265256,0.22619899,88434.0,88432.0,0.13076]
[1742848265712,0.226159,88433.0,88432.0,0.13076]
[1742848266841,0.237466,88433.0,88432.0,0.12776]
[1742848267011,0.237466,88433.0,88432.0,0.12576]
[1742848267214,0.237466,88433.0,88432.0,0.12776]
[1742848267668,4.099e-05,88434.0,88432.0,0.12776]
[1742848267877,4.099e-05,88434.0,88433.0,0.351919]
[1742848269205,4.099e-05,88434.0,88433.0,0.12576]
[1742848269606,0.23750499,88434.0,88433.0,0.12576]
[1742848269815,0.22619799,88434.0,88433.0,0.12876]
[1742848270163,0.23750499,88434.0,88433.0,0.12876]
[1742848270772,0.23750499,88434.0,88433.0,0.13076]
[1742848271030,0.237491,88425.0,88421.0,0.226189]
[1742848271233,0.237491,88425.0,88422.0,0.351947]
[1742848271435,0.226182,88426.0,88422.0,0.351947]
[1742848271649,0.226182,88426.0,88422.0,0.226187]
[1742848271942,0.226176,88427.0,88424.0,0.226182]
[1742848272148,0.226169,88430.0,88424.0,0.226182]
[1742848272377,0.226169,88430.0,88426.0,0.226176]
[1742848272575,0.22617,88429.0,88426.0,0.226176]
[1742848272770,0.22617,88429.0,88427.0,0.226174]
[1742848273008,0.22617,88429.0,88426.0,0.226176]
[1742848273207,0.22617,88429.0,88428.0,0.12576]
[1742848274678,0.237478,88429.0,88428.0,0.12576]
[1742848274888,0.237478,88429.0,88428.0,0.12676]
[1742848275351,0.237478,88429.0,88428.0,0.12876]
[1742848276616,0.237478,88429.0,88428.0,0.003]
[1742848276838,0.7635013,88429.0,88428.0,0.003]
[1742848277042,0.537494,88423.0,88422.0,0.0001699]
[1742848277224,0.78165164,88423.0,88422.0,0.0001699]
[1742848277421,0.89590928,88423.0,88422.0,0.0001699]
[1742848278272,0.89890928,88423.0,88422.0,0.0001699]
[1742848279281,0.78765164,88423.0,88422.0,0.0001699]
[1742848300787,0.537523,88412.0,88411.0,0.0001698]
[1742848301218,0.587023,88412.0,88411.0,0.0001698]
[1742848301722,0.59569979,88412.0,88411.0,0.0001698]
[1742848301898,0.70995743,88412.0,88411.0,0.0001698]
[1742848303600,0.78945743,88412.0,88411.0,0.0001698]
[1742848303814,0.87723247,88412.0,88411.0,0.0001698]
[1742848305447,0.88123247,88412.0,88411.0,0.0001698]
[1742848305854,0.79345743,88412.0,88411.0,0.0001698]
[1742848306562,0.79145743,88412.0,88411.0,0.0001698]
[1742848306919,0.79445743,88412.0,88411.0,0.0001698]
[1742848307320,0.80899828,88412.0,88411.0,0.0001698]
[1742848307517,0.537532,88409.0,88393.0,0.12576]
[1742848307865,0.78058813,88409.0,88393.0,0.12576]
[1742848308044,0.78058813,88409.0,88391.0,0.002]
[1742848308252,0.78058813,88409.0,88392.0,0.12576]
[1742848308469,0.66633049,88409.0,88392.0,0.12576]
[1742848308670,0.66833049,88409.0,88392.0,0.12576]
[1742848309706,0.67033049,88409.0,88392.0,0.12576]
[1742848311804,0.537553,88401.0,88391.0,0.002]
[1742848312003,0.011311,88407.0,88376.0,0.0001698]
[1742848312004,0.237618,88377.0,88376.0,0.0001698]
[1742848312233,0.2263,88379.0,88376.0,0.0001698]
[1742848312368,0.226295,88380.0,88376.0,0.0001698]
[1742848312585,0.237609,88380.0,88376.0,0.0001698]
[1742848312794,0.011314,88380.0,88376.0,0.0001698]
[1742848313034,0.2263,88379.0,88376.0,0.0001698]
[1742848313268,0.226303,88378.0,88376.0,0.00058091]
[1742848313473,0.24891525,88380.0,88376.0,0.22688391]
[1742848313677,0.226299,88379.0,88376.0,0.22688591]
[1742848313876,0.226303,88377.0,88376.0,0.00058091]
[1742848315104,0.237618,88377.0,88376.0,0.00058091]
[1742848316783,0.237618,88377.0,88376.0,0.00041131]
[1742848320481,0.237618,88377.0,88376.0,0.12621131]
[1742848324654,0.226303,88377.0,88376.0,0.12621131]
[1742848326500,0.237616,88378.0,88376.0,0.1258]
[1742848326907,0.01130425,88380.0,88379.0,0.226298]
[1742848327109,0.3,88384.0,88379.0,0.226298]
[1742848327313,0.226292,88382.0,88379.0,0.226298]
[1742848327513,0.226293,88381.0,88379.0,0.226298]
[1742848327723,0.226292,88382.0,88379.0,0.226298]
[1742848328026,0.226295,88380.0,88376.0,0.352105]
[1742848328184,0.226295,88380.0,88377.0,0.226303]
[1742848328185,0.226298,88379.0,88377.0,0.226303]
[1742848328389,0.23745762,88380.0,88377.0,0.226303]
[1742848328724,0.01116262,88380.0,88378.0,0.226299]
[1742848329064,0.226294,88381.0,88378.0,0.226299]
[1742848329332,0.226294,88381.0,88379.0,0.226297]
[1742848329510,0.226295,88380.0,88378.0,0.226299]
[1742848329729,0.226294,88381.0,88378.0,0.226299]
[1742848329886,0.011314,88381.0,88376.0,0.352104]
[1742848330092,0.226296,88380.0,88377.0,0.226302]
[1742848330293,0.226299,88379.0,88376.0,0.352104]
[1742848332879,0.226299,88379.0,88376.0,0.353104]
[1742848333430,0.226299,88379.0,88377.0,0.226302]
[1742848333623,0.23777055,88380.0,88378.0,0.226298]
[1742848334189,0.23777055,88380.0,88377.0,0.226302]
[1742848334599,0.01147455,88380.0,88378.0,0.226299]
[1742848334800,0.226293,88381.0,88377.0,0.226302]
[1742848335280,0.226293,88381.0,88378.0,0.226298]
[1742848335498,0.00034,88379.0,88378.0,0.226298]
[1742848336766,0.00034,88379.0,88378.0,0.227298]
[1742848336978,0.00034,88379.0,88378.0,0.001]
[1742848337384,0.00034,88379.0,88378.0,0.2273]
[1742848337585,0.00034,88379.0,88378.0,0.001]
[1742848339734,0.00034,88379.0,88378.0,0.2273]
[1742848339998,0.00034,88379.0,88378.0,0.001]
[1742848341055,0.00034,88379.0,88378.0,0.2273]
[1742848341442,0.00034,88379.0,88378.0,0.35306]
[1742848341933,0.00034,88379.0,88378.0,0.12676]
[1742848342165,0.226638,88379.0,88378.0,0.12676]
[1742848342381,0.00034,88379.0,88378.0,0.12676]
[1742848342761,0.226638,88379.0,88378.0,0.12676]
[1742848343188,0.00034,88379.0,88378.0,0.35306]
[1742848343812,0.00034,88379.0,88378.0,0.364375]
[1742848343962,0.00034,88379.0,88378.0,0.35306]
[1742848344365,0.00034,88379.0,88378.0,0.35206]
[1742848346967,0.237618,88377.0,88376.0,0.00017]
[1742848347288,0.0479,88377.0,88376.0,0.12593]
[1742848347631,0.0479,88377.0,88376.0,0.352235]
[1742848353368,0.0479,88377.0,88376.0,0.226475]
[1742848353583,0.0479,88377.0,88376.0,0.352235]
[1742848364059,0.0479,88377.0,88376.0,0.226475]
[1742848364313,0.0479,88377.0,88376.0,0.00017]
[1742848364502,0.274203,88377.0,88376.0,0.12593]
[1742848364889,0.285518,88377.0,88376.0,0.12593]
[1742848365389,0.285518,88377.0,88376.0,0.00017]
[1742848365721,0.285518,88377.0,88376.0,0.12593]
[1742848366502,0.237618,88377.0,88376.0,0.12593]
[1742848367599,0.2266406,88378.0,88376.0,0.12593]
[1742848367802,0.226303,88377.0,88376.0,0.12593]
[1742848368022,0.2266396,88378.0,88376.0,0.12593]
[1742848368254,0.226303,88377.0,88376.0,0.12593]
[1742848372242,0.2266426,88377.0,88376.0,0.12593]
[1742848375573,0.2266426,88377.0,88376.0,0.00017]
[1742848375750,0.2266426,88377.0,88376.0,0.12593]
[1742848376491,0.2379576,88377.0,88376.0,0.12593]
[1742848379429,0.0003396,88377.0,88376.0,0.12593]
[1742848379628,0.2266426,88377.0,88376.0,0.12593]
[1742848381237,0.2379576,88377.0,88376.0,0.12593]
[1742848382880,0.0003396,88377.0,88376.0,0.352235]
[1742848383085,0.0003396,88377.0,88376.0,0.36355]
[1742848383256,0.0003396,88377.0,88376.0,0.47780764]
[1742848385063,0.0003396,88377.0,88376.0,0.12593]
[1742848385270,0.2379576,88377.0,88376.0,0.00017]
[1742848385499,0.0003396,88377.0,88376.0,0.12589]
[1742848386013,0.0003396,88377.0,88376.0,0.352195]
[1742848388427,0.2266426,88377.0,88376.0,0.12589]
[1742848389431,0.0003396,88377.0,88376.0,0.352195]
[1742848390105,0.0003396,88377.0,88376.0,0.36351]
[1742848390314,0.0003396,88377.0,88376.0,0.47776764]
[1742848393911,0.0003396,88377.0,88376.0,0.49566764]
[1742848398460,0.0003396,88377.0,88376.0,0.13232764]
[1742848398672,0.0003396,88377.0,88376.0,0.48435264]
[1742848401391,0.0003396,88378.0,88377.0,0.226303]
[1742848401605,0.0003396,88378.0,88377.0,0.34056064]
[1742848404057,0.0003396,88378.0,88377.0,0.43257564]
[1742848404377,6e-07,88379.0,88378.0,0.323315]
[1742848404678,6e-07,88379.0,88378.0,0.47282364]
[1742848405072,6e-07,88379.0,88378.0,1.18142364]
[1742848405874,0.0010006,88379.0,88378.0,1.18142364]
[1742848406194,6e-07,88379.0,88378.0,1.18142364]
[1742848408626,6e-07,88379.0,88378.0,1.20417596]
[1742848409964,6e-07,88379.0,88378.0,1.20451556]
[1742848412288,6e-07,88379.0,88378.0,0.89951556]
[1742848412458,6e-07,88379.0,88378.0,0.90924456]
[1742848413324,6e-07,88379.0,88378.0,0.88649224]
[1742848414793,6e-07,88379.0,88378.0,1.44125739]
[1742848414977,6e-07,88379.0,88378.0,1.50139337]
[1742848415194,6e-07,88379.0,88378.0,1.53537337]
[1742848415706,6e-07,88379.0,88378.0,1.55793287]
[1742848415857,0.0003398,88412.0,88407.0,0.011311]
[1742848416214,0.2265528,88412.0,88409.0,0.22622]
[1742848416375,0.0003398,88412.0,88410.0,0.11425764]
[1742848416577,0.0003398,88412.0,88411.0,0.226216]
[1742848416779,0.0003398,88412.0,88411.0,0.34047364]
[1742848417180,0.0003808,88412.0,88411.0,0.34047364]
[1742848417747,0.0013808,88412.0,88411.0,0.34047364]
[1742848418251,0.0043808,88412.0,88411.0,0.11425764]
[1742848418720,0.0033808,88412.0,88411.0,0.34047364]
[1742848419101,0.0043808,88412.0,88411.0,0.34047364]
[1742848419573,0.0033808,88412.0,88411.0,0.34047364]
[1742848419923,0.0013808,88412.0,88411.0,0.34047364]
[1742848420327,0.0023808,88412.0,88411.0,0.34047364]
[1742848420806,0.0013808,88412.0,88411.0,0.34047364]
[1742848421109,0.0023808,88412.0,88411.0,0.34047364]
[1742848421885,0.0023808,88412.0,88411.0,0.36364061]
[1742848425046,0.001,88412.0,88411.0,0.36364061]
[1742848431251,0.001,88412.0,88411.0,0.36381031]
[1742848431762,0.0013394,88412.0,88411.0,0.36381031]
[1742848432164,0.0013394,88412.0,88411.0,0.13759431]
[1742848432512,0.0013394,88412.0,88411.0,0.36381031]
[1742848434420,0.0013394,88412.0,88411.0,0.13759431]
[1742848434820,0.0013394,88412.0,88411.0,0.36381031]
[1742848436293,0.0023394,88412.0,88411.0,0.13759431]
[1742848436514,0.0013394,88412.0,88411.0,0.36381031]
[1742848436688,0.0013394,88412.0,88411.0,0.13759431]
[1742848437042,0.0023394,88412.0,88411.0,0.13759431]
[1742848437396,0.0013394,88412.0,88411.0,0.13759431]
[1742848437614,0.2275524,88412.0,88411.0,0.13759431]
[1742848437815,0.2285524,88412.0,88411.0,0.13759431]
[1742848440452,0.2398624,88412.0,88411.0,0.13759431]
[1742848441004,0.2378624,88412.0,88411.0,0.13759431]
[1742848441406,0.2398624,88412.0,88411.0,0.13759431]
[1742848456321,0.3636624,88412.0,88411.0,0.0001697]
[1742848456522,0.6636624,88412.0,88411.0,0.0001697]
[1742848457413,0.6626624,88412.0,88411.0,0.0001697]
[1742848457827,0.6636624,88412.0,88411.0,0.0001697]
[1742848458246,0.6656624,88412.0,88411.0,0.0001697]
[1742848465754,0.237601,88383.0,88382.0,0.53808]
[1742848465960,0.22627,88390.0,88383.0,0.011314]
[1742848466163,0.226267,88391.0,88386.0,0.011314]
[1742848466365,0.01155634,88390.0,88387.0,0.11425764]
[1742848466577,0.011313,88388.0,88387.0,0.11425764]
[1742848466864,0.237588,88388.0,88387.0,0.11425764]
[1742848467040,0.237588,88388.0,88387.0,0.1143459]
[1742848468175,0.237588,88388.0,88387.0,0.1163459]
[1742848474611,0.237588,88388.0,88387.0,0.1177267]
[1742848477945,0.237588,88388.0,88387.0,0.1178964]
[1742848491625,0.666488,88388.0,88387.0,0.00163876]
[1742848491795,0.667488,88388.0,88387.0,0.00163876]
[1742848499977,0.667488,88388.0,88387.0,0.00025796]
[1742848501014,0.586488,88388.0,88387.0,0.00025796]
[1742848503522,0.667288,88388.0,88387.0,0.00025796]
[1742848507455,0.667288,88388.0,88387.0,9.6e-07]
[1742848507721,0.78154564,88388.0,88387.0,9.6e-07]
[1742848509608,0.77954564,88388.0,88387.0,9.6e-07]
[1742848509808,0.78254564,88388.0,88387.0,9.6e-07]
[1742848510008,0.8387144,88388.0,88387.0,9.6e-07]
[1742848510306,0.8357144,88388.0,88387.0,9.6e-07]
[1742848510536,0.77954564,88388.0,88387.0,9.6e-07]
[1742848510764,0.78354564,88388.0,88387.0,9.6e-07]
[1742848511008,0.78854564,88388.0,88387.0,9.6e-07]
[1742848513588,0.666412,88379.0,88378.0,0.0001698]
[1742848513808,0.666412,88379.0,88378.0,0.0002931]
[1742848514437,0.6750733,88379.0,88378.0,0.0002931]
[1742848514859,0.6770733,88379.0,88378.0,0.0002931]
[1742848516085,0.6790733,88379.0,88378.0,0.0002931]
[1742848516238,0.90758858,88379.0,88378.0,0.0002931]
[1742848516442,0.90558858,88379.0,88378.0,0.0002931]
[1742848516641,0.91812943,88379.0,88378.0,0.0002931]
[1742848516849,0.92412943,88379.0,88378.0,0.0002931]
[1742848517356,0.91812943,88379.0,88378.0,0.0002931]
[1742848517566,0.92212943,88379.0,88378.0,0.0002931]
[1742848517770,0.92612943,88379.0,88378.0,0.0002931]
[1742848519410,0.81187179,88379.0,88378.0,0.0002931]
[1742848523262,0.661018,88377.0,88376.0,0.00017]
[1742848523461,0.77527564,88377.0,88376.0,0.00025344]
[1742848524672,0.78127564,88377.0,88376.0,0.00025344]
[1742848526861,0.237658,88362.0,88359.0,0.1258098]
[1742848527184,0.237658,88362.0,88361.0,0.00241132]
[1742848529032,0.3,88369.0,88361.0,0.00241132]
[1742848529308,0.869418,88396.0,88374.0,0.011315]
[1742848529309,0.0492396,88387.0,88374.0,0.011315]
[1742848529530,0.0003396,88387.0,88375.0,0.12564]
[1742848529750,0.011314,88384.0,88375.0,0.12564]
[1742848529870,0.226287,88383.0,88378.0,0.2263]
[1742848530066,0.0116526,88387.0,88375.0,0.136955]
[1742848530275,0.226282,88386.0,88379.0,0.226298]
[1742848530496,0.226282,88386.0,88382.0,0.226289]
[1742848530709,0.22628,88386.0,88377.0,0.226303]
[1742848530902,0.011314,88384.0,88377.0,0.226303]
[1742848531254,0.226298,88379.0,88377.0,0.226303]
[1742848531553,0.01273409,88378.0,88377.0,0.226303]
[1742848531799,0.237609,88380.0,88377.0,0.226303]
[1742848531987,0.01273485,88378.0,88377.0,0.226303]
[1742848532208,0.237609,88380.0,88377.0,0.226303]
[1742848532419,0.01274393,88378.0,88377.0,0.226303]
[1742848532753,0.237609,88380.0,88377.0,0.226303]
[1742848532972,0.01274393,88378.0,88377.0,0.226303]
[1742848533171,0.237609,88380.0,88377.0,0.226303]
[1742848533394,0.01274469,88378.0,88377.0,0.226303]
[1742848533598,0.237609,88380.0,88377.0,0.226303]
[1742848533820,0.01274469,88378.0,88377.0,0.226303]
[1742848534056,0.239609,88380.0,88377.0,0.226303]
[1742848534258,0.01274469,88378.0,88377.0,0.226303]
[1742848534433,0.228295,88380.0,88377.0,0.226303]
[1742848534652,0.228295,88380.0,88376.0,0.226303]
[1742848534653,0.226295,88382.0,88379.0,0.226296]
[1742848534840,0.002,88380.0,88376.0,0.226303]
[1742848535046,0.001,88378.0,88376.0,0.226303]
[1742848535345,0.001,88378.0,88377.0,0.226302]
[1742848536431,0.002,88378.0,88377.0,0.237617]
[1742848536640,0.002,88378.0,88377.0,0.35187464]
[1742848536864,0.001,88378.0,88377.0,0.40987214]
[1742848537825,0.226284,88385.0,88381.0,0.226291]
[1742848538006,0.226284,88385.0,88378.0,0.011315]
[1742848538007,0.011314,88382.0,88377.0,0.12564]
[1742848538301,0.226292,88381.0,88378.0,0.34055764]
[1742848538878,0.237604,88382.0,88377.0,0.12564]
[1742848539086,0.2263,88378.0,88377.0,0.12564]
[1742848539289,0.237614,88379.0,88377.0,0.12564]
[1742848539678,0.237615,88378.0,88377.0,0.12564]
[1742848540630,0.237615,88378.0,88376.0,0.0001698]
[1742848540631,0.237618,88377.0,88376.0,0.0001698]
[1742848540839,0.237618,88377.0,88376.0,0.1257698]
[1742848542429,0.237618,88377.0,88376.0,0.0001698]
[1742848542605,0.583418,88377.0,88376.0,0.0001698]
[1742848542806,0.69767564,88377.0,88376.0,0.0001698]
[1742848543032,0.583418,88377.0,88376.0,0.0001698]
[1742848544158,0.585418,88377.0,88376.0,0.0001698]
[1742848544560,0.587418,88377.0,88376.0,0.0001698]
[1742848549548,0.59990672,88377.0,88376.0,0.0001698]
[1742848552115,0.60024632,88377.0,88376.0,0.0001698]
[1742848556473,0.71450396,88377.0,88376.0,0.0001698]
[1742848556847,0.79210396,88377.0,88376.0,0.0001698]
[1742848557234,0.9063616,88377.0,88376.0,0.0001698]
[1742848558394,0.9043616,88377.0,88376.0,0.0001698]
[1742848558708,0.9073616,88377.0,88376.0,0.0001698]
[1742848559083,0.9053616,88377.0,88376.0,0.0001698]
[1742848559490,0.9083616,88377.0,88376.0,0.0001698]
[1742848564905,0.79410396,88377.0,88376.0,0.0001698]
[1742848572309,0.60224632,88377.0,88376.0,0.0001698]
[1742848603016,0.01882832,88377.0,88376.0,0.2264748]
[1742848603224,0.01882832,88377.0,88376.0,0.0001698]
[1742848603385,0.25631859,88377.0,88376.0,0.0001698]
[1742848606691,0.01870059,88377.0,88376.0,0.0001698]
[1742848606928,0.01870059,88377.0,88376.0,0.3066748]
[1742848607159,0.2326426,88377.0,88376.0,0.0803698]
[1742848607311,0.0063396,88377.0,88376.0,0.3066748]
[1742848607505,0.01874016,88377.0,88376.0,0.3066748]
[1742848607710,0.0033396,88377.0,88376.0,0.3066748]
[1742848607935,0.0043396,88377.0,88376.0,0.3066748]
[1742848608195,0.0167394,88377.0,88376.0,0.3066748]
[1742848608373,0.0013396,88377.0,88376.0,0.3066748]
[1742848608578,0.0137394,88377.0,88376.0,0.3066748]
[1742848608792,0.0023396,88377.0,88376.0,0.3066748]
[1742848608951,0.01474016,88377.0,88376.0,0.3066748]
[1742848609151,0.0023396,88377.0,88376.0,0.3066748]
[1742848609731,0.0147394,88377.0,88376.0,0.3066748]
[1742848609945,0.0023396,88377.0,88376.0,0.3066748]
[1742848613279,0.0023396,88377.0,88376.0,0.4322748]
[1742848613486,0.0023396,88377.0,88376.0,0.54653244]
[1742848615550,0.0013396,88377.0,88376.0,0.54653244]
[1742848615974,0.0003396,88377.0,88376.0,0.54653244]
[1742848616168,0.0003396,88377.0,88376.0,0.1257698]
[1742848616675,0.0003396,88377.0,88376.0,0.1257298]
[1742848616871,0.01281601,88377.0,88376.0,0.3520348]
[1742848617211,0.23911901,88377.0,88376.0,0.1257298]
[1742848617614,0.25043401,88377.0,88376.0,0.1257298]